bitfinex-derivatives/quotes_BTCF0:USTF0_20210109
["timestamp","ask_amount","ask_price","bid_price","bid_amount"]
[1610192450089,0.13632608,41027.0,41010.0,3.026]
[1610192450489,0.13632608,41027.0,40987.0,0.1556]
[1610192450690,0.13632608,41027.0,40993.0,3.8535]
[1610192450889,0.13632608,41027.0,40987.0,0.1556]
[1610192451090,0.13632608,41027.0,40989.0,3.2881]
[1610192451291,0.13632608,41027.0,40990.0,0.1556]
[1610192451491,0.13632608,41027.0,40990.0,0.15580621]
[1610192451690,3.8617,41031.0,40992.0,0.13632608]
[1610192453696,3.8617,41031.0,41000.0,0.13632608]
[1610192453895,3.8617,41031.0,41000.0,0.21767608]
[1610192454096,3.8617,41031.0,41000.0,0.08135]
[1610192454496,1.5,41031.0,41000.0,0.08135]
[1610192454696,3.956,41011.0,41000.0,0.08135]
[1610192455297,3.956,41011.0,40989.0,0.09729]
[1610192455499,1.5,41017.0,40960.0,0.1556]
[1610192455697,0.13632608,40968.0,40967.0,3.09662608]
[1610192455898,0.13632608,40968.0,40967.0,0.13632608]
[1610192457599,0.13632608,40968.0,40960.0,0.1098]
[1610192457799,3.0292,40983.0,40962.0,0.13632608]
[1610192458198,3.0292,40983.0,40960.0,0.1098]
[1610192458900,0.07851,40990.0,40960.0,0.1098]
[1610192459100,0.299,41001.0,40961.0,0.15580644]
[1610192459501,0.4804,41000.0,40961.0,0.1556]
[1610192459701,0.4804,41000.0,40968.0,0.13632608]
[1610192460504,0.4804,41000.0,40961.0,0.1556]
[1610192461702,0.4804,41000.0,40963.0,0.13632608]
[1610192463204,0.299,41001.0,40963.0,0.13632608]
[1610192463405,3.1365,40995.0,40961.0,0.1556]
[1610192463804,0.13632608,40962.0,40961.0,0.1556]
[1610192464005,0.13632608,40962.0,40960.0,0.1098]
[1610192464206,0.13632608,40962.0,40944.0,3.4409]
[1610192465708,0.13632608,40945.0,40944.0,3.4409]
[1610192465908,0.13632608,40945.0,40944.0,3.2853]
[1610192466310,0.13632608,40945.0,40943.0,0.13632608]
[1610192471717,0.13632608,40945.0,40938.0,0.13632608]
[1610192473722,0.13632608,40939.0,40938.0,0.13632608]
[1610192477128,0.13632608,40939.0,40936.0,3.7965]
[1610192477929,0.13632608,40939.0,40929.0,0.1556]
[1610192478129,0.13632608,40939.0,40928.0,0.13632608]
[1610192478529,0.2911,40972.0,40928.0,0.13632608]
[1610192478731,0.2911,40972.0,40929.0,0.4735]
[1610192478930,0.2911,40972.0,40946.0,3.8851]
[1610192479130,0.2911,40972.0,40947.0,0.1556]
[1610192479730,0.2911,40972.0,40952.0,0.13632608]
[1610192481732,0.13632608,40953.0,40952.0,0.13632608]
[1610192484534,0.13632608,40953.0,40946.0,3.47189]
[1610192485838,0.13632608,40947.0,40946.0,3.60821608]
[1610192486038,0.13632608,40947.0,40946.0,0.24261608]
[1610192486238,0.13632608,40947.0,40946.0,0.10629]
[1610192486641,0.13632608,40947.0,40929.0,0.4735]
[1610192487340,0.13632608,40947.0,40929.0,0.1556]
[1610192487740,0.13632608,40930.0,40929.0,0.29192608]
[1610192488343,0.13632608,40930.0,40929.0,0.13632608]
[1610192501059,0.13632608,40930.0,40928.0,0.07596]
[1610192501259,0.13632608,40930.0,40905.0,0.4735]
[1610192501460,3.55282608,40930.0,40881.0,3.3815]
[1610192501659,3.55282608,40930.0,40906.0,0.0002]
[1610192501859,3.4165,40930.0,40916.0,0.13632608]
[1610192502059,0.2911,40972.0,40916.0,0.21605608]
[1610192502259,3.8237,40948.0,40916.0,0.21605608]
[1610192503459,0.2746,40963.0,40916.0,0.21605608]
[1610192503861,0.13632608,40917.0,40916.0,0.21605608]
[1610192505262,0.13632608,40917.0,40916.0,0.22371843]
[1610192505463,0.13632608,40917.0,40916.0,0.21625608]
[1610192512271,0.13632608,40917.0,40916.0,0.07993]
[1610192513272,3.2559,40931.0,40929.0,0.36367392]
[1610192513472,3.2559,40931.0,40929.0,0.46030392]
[1610192513774,0.2906,40952.0,40929.0,0.46030392]
[1610192513973,0.13632608,40930.0,40929.0,0.46030392]
[1610192514373,0.13632608,40930.0,40929.0,0.46050392]
[1610192514572,0.13632608,40930.0,40929.0,0.46030392]
[1610192515874,3.71952608,40930.0,40929.0,0.46030392]
[1610192516877,0.13632608,40930.0,40929.0,0.46030392]
[1610192517976,0.13632608,40930.0,40929.0,0.46050392]
[1610192518476,0.13632608,40930.0,40929.0,0.46030392]
[1610192519079,0.13632608,40930.0,40929.0,0.46050392]
[1610192519279,0.13632608,40930.0,40929.0,0.46030392]
[1610192519883,0.2746,40963.0,40929.0,0.46030392]
[1610192520082,1.5,41048.0,40940.0,0.13632608]
[1610192520283,0.2799,40994.0,40948.0,3.0409]
[1610192520484,0.2799,40994.0,40949.0,0.1556]
[1610192520684,0.03014728,40983.0,40949.0,0.26018]
[1610192520885,0.2799,40994.0,40966.0,3.5398]
[1610192520886,0.0301385,40993.0,40966.0,3.5398]
[1610192521089,0.0301385,40993.0,40966.0,3.63392]
[1610192521285,0.2799,40994.0,40966.0,3.33982682]
[1610192521487,0.2799,40994.0,40967.0,0.0002]
[1610192522088,0.2799,40994.0,40993.0,0.13632608]
[1610192522289,0.2799,40994.0,40993.0,0.23158608]
[1610192523995,0.41622608,40994.0,40993.0,0.23158608]
[1610192524993,0.2799,40994.0,40993.0,0.23158608]
[1610192531105,0.2799,40994.0,40993.0,0.09526]
[1610192531306,0.2799,40994.0,40966.0,0.09412]
[1610192531506,0.2799,40994.0,40993.0,0.09731]
[1610192532006,0.41622608,40994.0,40993.0,0.09731]
[1610192533809,0.83682608,40994.0,40993.0,0.09731]
[1610192534611,0.83682608,40994.0,40971.0,0.08782]
[1610192534811,0.93266608,40994.0,40971.0,0.08782]
[1610192535612,0.93266608,40994.0,40961.0,0.1556]
[1610192536012,0.13632608,40962.0,40961.0,0.1556]
[1610192537412,0.13632608,40962.0,40950.0,0.36367392]
[1610192538012,0.13632608,40951.0,40950.0,0.36367392]
[1610192565645,3.31412608,40951.0,40950.0,0.36367392]
[1610192565844,0.13632608,40951.0,40950.0,0.36367392]
[1610192572051,4.08852608,40951.0,40950.0,0.36367392]
[1610192581262,4.24339204,40951.0,40950.0,0.36367392]
[1610192582663,0.29119204,40951.0,40950.0,0.36367392]
[1610192583264,0.32135667,40951.0,40950.0,0.21434409]
[1610192583463,3.28415667,40951.0,40950.0,0.21434409]
[1610192584064,4.93354424,40951.0,40950.0,0.21434409]
[1610192584466,3.43354424,40951.0,40950.0,0.21434409]
[1610192588971,3.3439117,40951.0,40950.0,0.21434409]
[1610192589171,4.8439117,40951.0,40950.0,0.21434409]
[1610192589371,4.78415667,40951.0,40950.0,0.21434409]
[1610192589571,4.84391871,40951.0,40950.0,0.21434409]
[1610192589771,4.84391871,40951.0,40950.0,0.21214409]
[1610192589971,4.84391871,40951.0,40950.0,0.05034409]
[1610192590172,1.88111871,40951.0,40893.0,0.08667]
[1610192590373,0.2933,40950.0,40893.0,0.08667]
[1610192590572,0.13632608,40894.0,40893.0,0.08667]
[1610192590972,3.44932608,40894.0,40868.0,2.9652]
[1610192591172,0.13632608,40894.0,40854.0,3.5833]
[1610192591973,0.13632608,40894.0,40847.0,0.1556]
[1610192592174,3.6228,40892.0,40847.0,0.1556]
[1610192592573,0.13632608,40883.0,40856.0,0.13632608]
[1610192593174,0.13632608,40883.0,40847.0,0.1556]
[1610192593377,0.5642,40882.0,40847.0,0.1556]
[1610192595378,0.13632608,40883.0,40847.0,0.1556]
[1610192595580,0.13632608,40883.0,40871.0,0.11854]
[1610192596581,0.13632608,40883.0,40872.0,0.488]
[1610192596980,0.13632608,40883.0,40871.0,0.11854]
[1610192597180,0.2977,40910.0,40880.0,4.042]
[1610192597380,0.2977,40910.0,40887.0,3.4924]
[1610192597781,0.073,40909.0,40887.0,3.4924]
[1610192598182,0.0739,40916.0,40887.0,3.4924]
[1610192598183,0.08257,40926.0,40887.0,3.4924]
[1610192598582,0.08257,40926.0,40888.0,0.13632608]
[1610192598782,0.00029887,40925.0,40888.0,0.13632608]
[1610192599182,0.07319887,40925.0,40888.0,0.13632608]
[1610192599382,0.0729,40925.0,40888.0,0.13632608]
[1610192599784,0.08257,40926.0,40893.0,3.6565]
[1610192600183,0.08257,40926.0,40893.0,3.7601]
[1610192600685,0.13632608,40894.0,40893.0,0.1036]
[1610192605287,0.13632608,40894.0,40880.0,0.10775]
[1610192605488,0.13632608,40894.0,40878.0,0.02530505]
[1610192606489,3.01725284,40900.0,40887.0,2.9517817]
[1610192606691,0.38537,40917.0,40892.0,2.6565745]
[1610192606888,0.03019576,40916.0,40901.0,2.5088815]
[1610192607288,0.03019576,40916.0,40903.0,2.5087971]
[1610192607688,0.03019576,40916.0,40910.0,2.509115]
[1610192607890,0.2895,40917.0,40912.0,2.5090766]
[1610192608289,0.2895,40917.0,40909.0,0.10915]
[1610192608694,0.2895,40917.0,40911.0,2.6563311]
[1610192609694,3.8717,40926.0,40913.0,2.6561664]
[1610192610293,0.08995117,40925.0,40920.0,2.50931469]
[1610192610695,0.13632608,40921.0,40920.0,2.50931469]
[1610192611095,0.13632608,40921.0,40919.0,2.50933124]
[1610192611896,0.0722,40920.0,40919.0,2.50933124]
[1610192612296,0.13632608,40921.0,40919.0,2.50933124]
[1610192612898,0.05976765,40931.0,40919.0,2.50933124]
[1610192613298,0.08995018,40931.0,40919.0,2.50933124]
[1610192613500,0.08995018,40931.0,40920.0,2.50994882]
[1610192614702,0.08995018,40931.0,40921.0,2.51059208]
[1610192616404,0.08995018,40931.0,40920.0,2.51237741]
[1610192616803,0.13632608,40921.0,40920.0,2.51237741]
[1610192617202,0.0737,40921.0,40919.0,2.51241457]
[1610192617404,0.03018503,40921.0,40919.0,2.51241457]
[1610192617605,0.05976765,40931.0,40919.0,2.51241457]
[1610192617804,0.03018624,40920.0,40919.0,2.51241457]
[1610192618105,0.08995396,40931.0,40917.0,2.51304894]
[1610192618506,0.03018703,40920.0,40917.0,2.51304894]
[1610192618705,0.13632608,40918.0,40917.0,2.51304894]
[1610192618907,3.29872608,40918.0,40914.0,2.51368994]
[1610192619106,3.32861464,40918.0,40914.0,2.51368994]
[1610192619305,3.32891353,40918.0,40914.0,2.51368994]
[1610192619505,0.08996508,40917.0,40914.0,2.51368994]
[1610192619707,0.08996508,40917.0,40913.0,2.51407077]
[1610192619906,0.13632608,40918.0,40913.0,2.51407077]
[1610192620105,0.13632608,40918.0,40915.0,2.51396749]
[1610192620506,0.05977359,40928.0,40912.0,2.66217095]
[1610192620706,0.13632608,40913.0,40912.0,2.66217095]
[1610192621306,0.13632608,40913.0,40909.0,0.10915]
[1610192621607,0.13632608,40913.0,40906.0,2.95796773]
[1610192622006,0.13632608,40913.0,40896.0,0.22639608]
[1610192622406,0.13632608,40913.0,40903.0,3.10617009]
[1610192622806,0.09588,40946.0,40903.0,3.10617009]
[1610192622807,0.0735,40917.0,40905.0,0.13632608]
[1610192623007,0.0723,40931.0,40906.0,2.9747]
[1610192623208,0.09588,40946.0,40922.0,2.66233673]
[1610192623407,0.03017864,40945.0,40922.0,2.77161673]
[1610192623809,0.03017864,40945.0,40933.0,2.51441426]
[1610192624009,0.03017699,40951.0,40933.0,2.51441426]
[1610192624212,0.0301743,40944.0,40936.0,2.51411978]
[1610192624411,0.03017423,40950.0,40936.0,2.51411978]
[1610192624612,0.03017423,40950.0,40941.0,2.5135236]
[1610192624812,0.13632608,40942.0,40941.0,2.5135236]
[1610192625014,0.13632608,40942.0,40932.0,0.08866]
[1610192625215,0.13632608,40942.0,40936.0,2.66111035]
[1610192625416,2.7436,40941.0,40936.0,2.66111035]
[1610192625819,2.7436,40941.0,40940.0,2.51256649]
[1610192626417,2.83352478,40941.0,40938.0,2.51285561]
[1610192626616,2.83352478,40941.0,40932.0,2.74933065]
[1610192626617,2.83352478,40941.0,40936.0,2.51263718]
[1610192626818,0.13632608,40937.0,40936.0,2.51263718]
[1610192627018,0.13632608,40937.0,40932.0,2.74933065]
[1610192627313,0.03017435,40936.0,40935.0,2.51280706]
[1610192627714,0.08992667,40940.0,40934.0,2.51277825]
[1610192627913,0.03017505,40936.0,40934.0,2.51277825]
[1610192628113,0.03017556,40939.0,40935.0,2.51272543]
[1610192628414,2.7436,40941.0,40932.0,0.08866]
[1610192628620,0.03017375,40938.0,40932.0,0.08866]
[1610192628814,0.13632608,40933.0,40932.0,0.08866]
[1610192629214,0.13632608,40933.0,40930.0,2.66043665]
[1610192629614,0.13632608,40933.0,40929.0,2.66048509]
[1610192630014,0.64222608,40933.0,40929.0,2.66048509]
[1610192630416,0.19452075,40933.0,40929.0,2.66048509]
[1610192630614,0.03017806,40932.0,40929.0,2.51319743]
[1610192630814,0.13632608,40930.0,40929.0,2.51319743]
[1610192631615,0.16650539,40930.0,40923.0,2.66103258]
[1610192631816,0.03017971,40929.0,40923.0,2.66103258]
[1610192632017,0.03017971,40929.0,40921.0,2.6613168]
[1610192632619,0.03017971,40929.0,40928.0,2.5137547]
[1610192633918,0.19452075,40933.0,40928.0,2.51398712]
[1610192634219,0.03017963,40932.0,40928.0,2.51398712]
[1610192634820,0.03017963,40932.0,40929.0,2.51421816]
[1610192635420,0.03017963,40932.0,40930.0,2.5144178]
[1610192635620,0.03017791,40936.0,40923.0,2.75896642]
[1610192635820,0.3543508,40937.0,40923.0,2.75896642]
[1610192636020,0.3543508,40937.0,40930.0,2.66186864]
[1610192636822,0.13632608,40945.0,40936.0,0.13632608]
[1610192637224,0.03017212,40944.0,40936.0,0.13632608]
[1610192637423,0.03017212,40944.0,40939.0,2.6610111]
[1610192637624,0.13632608,40945.0,40939.0,2.6610111]
[1610192638929,0.13632608,40945.0,40944.0,0.13632608]
[1610192640130,0.2786,40957.0,40944.0,0.13632608]
[1610192640530,0.03016973,40952.0,40944.0,0.13632608]
[1610192640730,0.03016973,40952.0,40945.0,2.51167274]
[1610192640931,0.03016973,40952.0,40950.0,0.13632608]
[1610192641531,0.03016944,40956.0,40950.0,0.13632608]
[1610192641832,0.03016981,40951.0,40950.0,0.13632608]
[1610192642231,0.03016956,40955.0,40950.0,0.13632608]
[1610192642432,0.03016925,40951.0,40950.0,0.13632608]
[1610192642632,0.0301678,40954.0,40950.0,0.13632608]
[1610192643031,0.2986,40981.0,40952.0,2.510955]
[1610192643432,0.03016115,40965.0,40957.0,2.50962648]
[1610192643632,0.09244,40979.0,40957.0,2.50962648]
[1610192643833,0.09244,40979.0,40961.0,2.50952279]
[1610192644232,0.0301582,40978.0,40962.0,2.50948274]
[1610192644834,0.0301582,40978.0,40977.0,0.13632608]
[1610192645035,0.03015432,40981.0,40977.0,0.13632608]
[1610192645233,0.03015501,40978.0,40977.0,0.13632608]
[1610192645633,0.03015501,40980.0,40977.0,0.13632608]
[1610192646035,0.03014988,40981.0,40977.0,0.13632608]
[1610192646434,0.03014755,40979.0,40977.0,0.13632608]
[1610192646635,0.05970273,41003.0,40977.0,0.13632608]
[1610192646835,0.05970273,41003.0,41002.0,0.13632608]
[1610192647239,0.08985188,41003.0,41002.0,0.13632608]
[1610192647435,0.03014887,41006.0,41002.0,0.13632608]
[1610192647638,0.03014875,41003.0,41002.0,0.13632608]
[1610192648037,0.03014738,41006.0,41002.0,0.13632608]
[1610192648237,0.03014717,41003.0,41002.0,0.13632608]
[1610192648437,0.03014692,41005.0,41002.0,0.13632608]
[1610192648838,0.03014666,41006.0,41002.0,0.13632608]
[1610192649040,0.03014666,41004.0,41002.0,0.13632608]
[1610192649239,0.03014711,41005.0,41002.0,0.13632608]
[1610192649440,4.0412477,41003.0,40984.0,0.10701]
[1610192649640,4.0412477,41003.0,40970.0,0.10787]
[1610192649840,0.03014728,41002.0,40970.0,0.10787]
[1610192650040,0.03014728,41002.0,40968.0,3.1001]
[1610192650840,0.03014728,41002.0,40986.0,0.13632608]
[1610192651843,0.08985147,41002.0,40986.0,0.13632608]
[1610192652847,0.08985147,41002.0,40996.0,0.13632608]
[1610192653444,0.03322714,41003.0,40996.0,0.13632608]
[1610192653747,0.00307565,41000.0,40996.0,0.13632608]
[1610192654247,0.03015135,40999.0,40996.0,0.13632608]
[1610192654446,0.00746925,40997.0,40996.0,0.13632608]
[1610192654647,0.10270925,40997.0,40996.0,0.13632608]
[1610192654847,1.22828649,40997.0,40996.0,0.13632608]
[1610192655047,1.06180851,40997.0,40996.0,0.13632608]
[1610192655450,0.13593327,40997.0,40996.0,0.13632608]
[1610192655849,0.12539089,40997.0,40996.0,0.13632608]
[1610192657049,0.12846453,40997.0,40996.0,0.13632608]
[1610192657851,3.72505366,40997.0,40969.0,3.5209]
[1610192658052,0.13285366,40997.0,40955.0,0.1076]
[1610192658251,0.13285366,40997.0,40916.0,0.2233]
[1610192658252,0.00307312,40991.0,40916.0,0.2233]
[1610192658452,3.3249,40988.0,40940.0,2.8763]
[1610192658652,3.43380291,40988.0,40940.0,2.8763]
[1610192658852,0.08986426,40987.0,40972.0,0.13632608]
[1610192659452,0.003073,40986.0,40972.0,0.13632608]
[1610192659651,0.003073,40986.0,40940.0,2.8763]
[1610192659851,0.00307294,40985.0,40940.0,2.8763]
[1610192660052,0.03323203,40985.0,40940.0,2.8763]
[1610192660254,0.00307288,40983.0,40940.0,2.8763]
[1610192660853,0.13632608,40963.0,40959.0,0.13632608]
[1610192661756,3.5648,40962.0,40959.0,0.13632608]
[1610192662155,3.5648,40962.0,40931.0,3.3679]
[1610192662554,0.03016434,40961.0,40931.0,3.3679]
[1610192662956,0.03016434,40961.0,40951.0,0.13632608]
[1610192664756,0.03016539,40962.0,40951.0,0.13632608]
[1610192664955,0.03016539,40962.0,40961.0,0.13632608]
[1610192665156,0.11508,40963.0,40961.0,0.13632608]
[1610192665558,0.00029864,40962.0,40961.0,0.13632608]
[1610192665760,0.03016243,40962.0,40961.0,0.13632608]
[1610192666459,0.11508,40963.0,40961.0,0.13632608]
[1610192667060,0.05972801,40970.0,40961.0,3.15552608]
[1610192667261,0.05971959,40981.0,40961.0,3.15552608]
[1610192667463,0.19604041,40984.0,40961.0,3.15552608]
[1610192667661,0.03015526,40980.0,40961.0,3.15552608]
[1610192668066,0.03015262,40985.0,40961.0,3.15552608]
[1610192668265,0.02985429,40979.0,40961.0,3.15552608]
[1610192668464,0.03015176,40984.0,40961.0,3.15552608]
[1610192668665,0.02985322,40984.0,40961.0,3.15552608]
[1610192668864,0.10583,40988.0,40961.0,3.15552608]
[1610192669063,0.05970858,40989.0,40983.0,0.13632608]
[1610192669263,0.09831607,40997.0,40983.0,0.13632608]
[1610192669264,0.03015025,40987.0,40983.0,0.13632608]
[1610192669464,0.13000025,40987.0,40983.0,0.13632608]
[1610192669664,0.09985,40987.0,40983.0,0.13632608]
[1610192669863,0.0301483,40986.0,40983.0,0.13632608]
[1610192670066,0.03014833,40986.0,40983.0,0.13632608]
[1610192670264,0.0002985,40986.0,40983.0,0.13632608]
[1610192670464,0.03014831,40985.0,40983.0,0.13632608]
[1610192670869,0.03014954,40986.0,40983.0,0.13632608]
[1610192671267,0.03014947,40984.0,40983.0,0.13632608]
[1610192671466,0.03014924,40985.0,40983.0,0.13632608]
[1610192671666,0.03014911,40984.0,40983.0,0.13632608]
[1610192672168,0.03014941,40986.0,40983.0,0.13632608]
[1610192672569,0.03014921,40984.0,40983.0,0.13632608]
[1610192672769,0.0301488,40985.0,40983.0,0.13632608]
[1610192672969,0.0298503,40985.0,40983.0,0.13632608]
[1610192673374,0.09985,40987.0,40983.0,0.13632608]
[1610192673770,0.03014754,40986.0,40983.0,0.13632608]
[1610192674570,0.09985,40987.0,40983.0,0.13632608]
[1610192674771,0.07024022,41002.0,40983.0,0.13632608]
[1610192674971,0.13632608,40999.0,40996.0,0.13632608]
[1610192675171,0.13632608,40999.0,40977.0,2.60322754]
[1610192675372,0.03014678,40998.0,40977.0,2.60322754]
[1610192676974,0.03014678,40998.0,40993.0,0.13632608]
[1610192677974,0.03014678,40998.0,40956.0,0.11302]
[1610192677975,14.29532852,40994.0,40956.0,0.11302]
[1610192678174,14.29532852,40994.0,40950.0,3.7809]
[1610192678374,0.4524,40989.0,40950.0,3.7809]
[1610192678575,0.53978,40989.0,40950.0,3.7809]
[1610192678775,14.30286667,40984.0,40950.0,3.7809]
[1610192678976,14.30286667,40984.0,40965.0,0.13632608]
[1610192679175,14.30353823,40982.0,40965.0,0.13632608]
[1610192679575,14.40203059,40981.0,40965.0,0.13632608]
[1610192679976,14.31309875,40978.0,40965.0,0.13632608]
[1610192680175,14.31307073,40977.0,40965.0,0.13632608]
[1610192680374,14.40294907,40977.0,40965.0,0.13632608]
[1610192680575,12.26648565,40975.0,40965.0,0.13632608]
[1610192680975,0.13632608,40966.0,40965.0,0.13632608]
[1610192681177,0.22704608,40966.0,40921.0,0.1556]
[1610192681376,0.22704608,40966.0,40940.0,2.9504]
[1610192681577,0.25720722,40966.0,40940.0,2.9504]
[1610192681776,0.03016183,40965.0,40940.0,2.9504]
[1610192683076,0.03016183,40965.0,40955.0,0.13632608]
[1610192687177,0.13632608,40956.0,40955.0,0.13632608]
[1610192687578,0.25361608,40956.0,40955.0,0.13632608]
[1610192688781,0.283783,40956.0,40955.0,0.13632608]
[1610192691283,0.283783,40956.0,40893.0,0.1556]
[1610192691487,0.283783,40956.0,40901.0,3.0934]
[1610192691684,0.03017057,40955.0,40901.0,3.0934]
[1610192692084,0.31597057,40955.0,40901.0,3.0934]
[1610192692285,0.287,40954.0,40901.0,3.0934]
[1610192692485,0.31717207,40954.0,40901.0,3.0934]
[1610192692885,0.03017286,40953.0,40901.0,3.0934]
[1610192693086,0.03017286,40953.0,40936.0,0.13632608]
[1610192693285,0.00029874,40953.0,40936.0,0.13632608]
[1610192693485,10.40491957,40953.0,40936.0,0.13632608]
[1610192693888,0.00029874,40952.0,40936.0,0.13632608]
[1610192694888,0.00029876,40953.0,40936.0,0.13632608]
[1610192695087,0.00029876,40953.0,40925.0,3.523]
[1610192695288,0.00029876,40951.0,40925.0,3.523]
[1610192695488,0.00029876,40952.0,40925.0,3.523]
[1610192695689,0.00029876,40950.0,40925.0,3.523]
[1610192696088,0.00029876,40951.0,40925.0,3.523]
[1610192696289,0.00029876,40949.0,40925.0,3.523]
[1610192696491,0.00029876,40953.0,40925.0,3.523]
[1610192696890,4.53279098,40954.0,40925.0,3.523]
[1610192696891,0.00029876,40948.0,40925.0,3.523]
[1610192697091,0.00029876,40952.0,40941.0,0.13632608]
[1610192697291,4.24681319,40953.0,40941.0,0.13632608]
[1610192697492,4.24651443,40953.0,40941.0,0.13632608]
[1610192697891,4.24684863,40952.0,40941.0,0.13632608]
[1610192698194,0.00029877,40952.0,40941.0,0.13632608]
[1610192698394,0.00029877,40951.0,40941.0,0.13632608]
[1610192698596,0.00029877,40952.0,40941.0,0.13632608]
[1610192698794,0.00029877,40950.0,40941.0,0.13632608]
[1610192699097,0.00029877,40951.0,40941.0,0.13632608]
[1610192699496,0.00029877,40949.0,40925.0,3.523]
[1610192699695,0.00029877,40950.0,40925.0,3.523]
[1610192699896,0.287,40954.0,40925.0,3.523]
[1610192699897,3.21338411,40952.0,40925.0,3.523]
[1610192700297,0.00029877,40949.0,40925.0,3.523]
[1610192700498,3.21339891,40951.0,40925.0,3.523]
[1610192700898,0.00029877,40951.0,40925.0,3.523]
[1610192701098,0.00029877,40950.0,40937.0,0.13632608]
[1610192701499,0.00029877,40951.0,40937.0,0.13632608]
[1610192701701,0.00029877,40949.0,40937.0,0.13632608]
[1610192702098,3.21257723,40952.0,40937.0,0.13632608]
[1610192702099,0.00029877,40950.0,40937.0,0.13632608]
[1610192702298,0.00029877,40948.0,40937.0,0.13632608]
[1610192702498,0.00029877,40949.0,40937.0,0.13632608]
[1610192702899,0.00029877,40947.0,40937.0,0.13632608]
[1610192703102,0.00029877,40947.0,40900.0,5.8668]
[1610192703103,0.08395,40947.0,40946.0,0.13632608]
[1610192703702,0.08424877,40947.0,40946.0,0.13632608]
[1610192705505,0.08395,40947.0,40946.0,0.13632608]
[1610192708507,0.09073,40947.0,40946.0,0.13632608]
[1610192711914,0.11729,40956.0,40955.0,3.2453]
[1610192712115,1.64815249,40970.0,40955.0,3.2453]
[1610192712317,0.99936742,40976.0,40955.0,3.2453]
[1610192712515,0.97694619,40976.0,40955.0,3.2453]
[1610192712715,1.11351938,40978.0,40955.0,3.2453]
[1610192712915,0.0301567,40975.0,40955.0,3.2453]
[1610192713115,0.03015568,40977.0,40974.0,0.13632608]
[1610192713315,0.11408,40978.0,40974.0,0.13632608]
[1610192713717,0.00029857,40976.0,40974.0,0.13632608]
[1610192713915,0.00029857,40977.0,40974.0,0.13632608]
[1610192714115,0.00029857,40975.0,40974.0,0.13632608]
[1610192714516,0.00029857,40976.0,40974.0,0.13632608]
[1610192714718,0.00029857,40975.0,40974.0,0.13632608]
[1610192715317,0.00029857,40979.0,40974.0,0.13632608]
[1610192715518,0.00029857,40975.0,40974.0,0.13632608]
[1610192715717,0.03015495,40979.0,40974.0,0.13632608]
[1610192715918,0.00029857,40975.0,40974.0,0.13632608]
[1610192716320,0.00029857,40978.0,40974.0,0.13632608]
[1610192716519,0.00029857,40975.0,40974.0,0.13632608]
[1610192716720,0.00029857,40977.0,40974.0,0.13632608]
[1610192717120,0.00029857,40975.0,40974.0,0.13632608]
[1610192717321,0.00029857,40979.0,40974.0,0.13632608]
[1610192717524,0.00029857,40975.0,40974.0,0.13632608]
[1610192717920,0.00029857,40978.0,40974.0,0.13632608]
[1610192718121,0.00029857,40975.0,40974.0,0.13632608]
[1610192718320,0.08043,40980.0,40974.0,0.13632608]
[1610192718321,0.00029857,40977.0,40974.0,0.13632608]
[1610192718722,0.00029857,40975.0,40974.0,0.13632608]
[1610192718922,0.00029857,40976.0,40974.0,0.13632608]
[1610192719122,0.00029857,40975.0,40974.0,0.13632608]
[1610192719722,0.0002986,40976.0,40974.0,0.13632608]
[1610192719921,0.0002986,40975.0,40974.0,0.13632608]
[1610192720125,0.46883821,40975.0,40974.0,0.13632608]
[1610192720321,0.46853961,40975.0,40974.0,0.13632608]
[1610192720523,0.4987003,40975.0,40974.0,0.13632608]
[1610192720722,1.36277037,40975.0,40974.0,0.13632608]
[1610192722225,0.49870328,40975.0,40974.0,0.13632608]
[1610192723125,0.05570159,40975.0,40974.0,0.13632608]
[1610192723324,0.19202767,40975.0,40974.0,0.13632608]
[1610192723524,0.63507983,40975.0,40974.0,0.13632608]
[1610192723725,0.19202767,40975.0,40974.0,0.13632608]
[1610192724125,0.60954042,40975.0,40974.0,0.13632608]
[1610192724526,1.63998946,40975.0,40955.0,3.9789]
[1610192724725,1.14118946,40975.0,40934.0,0.1556]
[1610192724925,2.9028,40972.0,40929.0,2.7677]
[1610192725125,2.9028,40972.0,40930.0,0.1556]
[1610192725328,0.0557058,40971.0,40962.0,0.13632608]
[1610192725526,0.60686503,40971.0,40962.0,0.13632608]
[1610192725726,0.03016312,40970.0,40947.0,2.8952]
[1610192725926,0.05570613,40970.0,40947.0,2.8952]
[1610192726326,0.46865099,40968.0,40947.0,2.8952]
[1610192726726,0.46869906,40967.0,40947.0,2.8952]
[1610192726926,0.49886424,40967.0,40947.0,2.8952]
[1610192727129,0.49888624,40966.0,40947.0,2.8952]
[1610192727329,0.0301656,40966.0,40957.0,0.13632608]
[1610192727530,0.03016616,40965.0,40957.0,0.13632608]
[1610192728128,0.05571364,40966.0,40957.0,0.13632608]
[1610192728328,0.03016638,40964.0,40957.0,0.13632608]
[1610192728728,0.03016598,40965.0,40957.0,0.13632608]
[1610192728930,0.03016554,40963.0,40957.0,0.13632608]
[1610192729129,0.03016597,40964.0,40957.0,0.13632608]
[1610192729329,0.13632608,40958.0,40957.0,0.13632608]
[1610192729533,0.21272608,40958.0,40957.0,0.13632608]
[1610192729931,0.2428918,40958.0,40957.0,0.13632608]
[1610192730134,0.2428918,40958.0,40930.0,0.1556]
[1610192730332,0.2428918,40958.0,40938.0,3.5628]
[1610192730732,0.02986798,40957.0,40938.0,3.5628]
[1610192730932,0.03016665,40957.0,40938.0,3.5628]
[1610192731231,0.03016665,40957.0,40951.0,0.13632608]
[1610192732336,0.5055,40956.0,40951.0,0.13632608]
[1610192732536,0.03016665,40957.0,40902.0,0.1556]
[1610192732736,3.7864,40950.0,40912.0,0.10955]
[1610192733138,0.03017169,40949.0,40913.0,0.0002]
[1610192733337,0.13632608,40932.0,40931.0,0.13632608]
[1610192733537,0.23345608,40932.0,40931.0,0.13632608]
[1610192736339,0.23345608,40932.0,40918.0,3.9957]
[1610192737341,0.09713,40932.0,40924.0,0.13632608]
[1610192737742,0.09713,40932.0,40931.0,3.7038]
[1610192738543,0.09746,40949.0,40931.0,3.7038]
[1610192738742,5.5654979,40954.0,40931.0,3.7038]
[1610192738944,0.00029877,40948.0,40931.0,3.7038]
[1610192739144,0.08310877,40948.0,40931.0,3.7038]
[1610192739346,0.08281,40948.0,40947.0,0.13632608]
[1610192739744,0.08310873,40948.0,40947.0,0.13632608]
[1610192740346,0.08281,40948.0,40947.0,0.13632608]
[1610192740546,0.08310873,40948.0,40947.0,0.13632608]
[1610192741847,0.08281,40948.0,40947.0,0.13632608]
[1610192744353,0.2985,40956.0,40947.0,0.13632608]
[1610192745352,0.2985,40956.0,40955.0,0.13632608]